{"text_format":"1","workbook":"xlsx","n_sheets":1,"sheets":["Sheet1"],"not_rendered":{"charts":0,"images":0,"macros":1,"external_links":0,"defined_names":0,"comments":0,"pivot_tables":0},"unopened":[],"bounds":{"document_bytes":16777216,"sheet_cells":100000,"rows_first":2000,"rows_last":500,"rows_between":2000,"halvings":0,"cell_chars":16384,"cell_head_chars":4096},"cells_cut":0,"cells_raw":0,"read":"whole","date_system":"1900"}

{"sheet":"Sheet1","index":0,"n_rows":38,"n_cols":23,"rows_kept":38,"cut":false,"hidden":false,"merged":[]}
["As At Date",{"$f":"TODAY()","v":"2019-12-16"}]
["Follow Up Date",{"$f":"WORKDAY($B$1,7)","v":"2019-12-25"}]
["Fund Name","Email Header","Email Content","Email 1","Email 2","Email 3","Email 4","Email 5","Email 6","Email 7","Email 8","Email 9","Email 10","Initial Email Sent","Response Received ","Follow Up Required (BD7)","Follow Up Issued","Mfund Upload Date",null,null,null,null,"Resonse"]
["Fund 1",null,null,null,null,null,null,null,null,null,null,null,null,null,{"$f":"IF($R4=\"\",\"No\",IF($R4>=$B$2,\"No\",\"Yes\"))","v":"No"},{"$f":"IF($O4=\"Yes\",\"Yes\",\"No\")","v":"No"},null,null,null,null,null,null,"Yes"]
["Fund 2",null,null,null,null,null,null,null,null,null,null,null,null,null,{"$f":"IF($R5=\"\",\"No\",IF($R5>=$B$2,\"No\",\"Yes\"))","v":"No"},{"$f":"IF($O5=\"Yes\",\"Yes\",\"No\")","v":"No"},null,null,null,null,null,null,"No"]
["Fund 3",null,null,null,null,null,null,null,null,null,null,null,null,null,{"$f":"IF($R6=\"\",\"No\",IF($R6>=$B$2,\"No\",\"Yes\"))","v":"No"},"No"]
["Fund 4",null,null,null,null,null,null,null,null,null,null,null,null,null,{"$f":"IF($R7=\"\",\"No\",IF($R7>=$B$2,\"No\",\"Yes\"))","v":"No"},"No"]
["Fund 5",null,null,null,null,null,null,null,null,null,null,null,null,null,{"$f":"IF($R8=\"\",\"No\",IF($R8>=$B$2,\"No\",\"Yes\"))","v":"No"},"No"]
["Fund 6",null,null,null,null,null,null,null,null,null,null,null,null,null,{"$f":"IF($R9=\"\",\"No\",IF($R9>=$B$2,\"No\",\"Yes\"))","v":"No"},"No"]
["Fund 7",null,null,null,null,null,null,null,null,null,null,null,null,null,{"$f":"IF($R10=\"\",\"No\",IF($R10>=$B$2,\"No\",\"Yes\"))","v":"No"},"No"]
["Fund 8",null,null,null,null,null,null,null,null,null,null,null,null,null,{"$f":"IF($R11=\"\",\"No\",IF($R11>=$B$2,\"No\",\"Yes\"))","v":"No"},"No"]
["Fund 9",null,null,null,null,null,null,null,null,null,null,null,null,null,{"$f":"IF($R12=\"\",\"No\",IF($R12>=$B$2,\"No\",\"Yes\"))","v":"No"},"No"]
["Fund 10",null,null,null,null,null,null,null,null,null,null,null,null,null,{"$f":"IF($R13=\"\",\"No\",IF($R13>=$B$2,\"No\",\"Yes\"))","v":"No"},"No"]
["Fund 11",null,null,null,null,null,null,null,null,null,null,null,null,null,{"$f":"IF($R14=\"\",\"No\",IF($R14>=$B$2,\"No\",\"Yes\"))","v":"No"},"No"]
["Fund 12",null,null,null,null,null,null,null,null,null,null,null,null,null,{"$f":"IF($R15=\"\",\"No\",IF($R15>=$B$2,\"No\",\"Yes\"))","v":"No"},"No"]
["Fund 13",null,null,null,null,null,null,null,null,null,null,null,null,null,{"$f":"IF($R16=\"\",\"No\",IF($R16>=$B$2,\"No\",\"Yes\"))","v":"No"},"No"]
["Fund 14",null,null,null,null,null,null,null,null,null,null,null,null,null,{"$f":"IF($R17=\"\",\"No\",IF($R17>=$B$2,\"No\",\"Yes\"))","v":"No"},"No"]
["Fund 15",null,null,null,null,null,null,null,null,null,null,null,null,null,{"$f":"IF($R18=\"\",\"No\",IF($R18>=$B$2,\"No\",\"Yes\"))","v":"No"},"No"]
["Fund 16",null,null,null,null,null,null,null,null,null,null,null,null,null,{"$f":"IF($R19=\"\",\"No\",IF($R19>=$B$2,\"No\",\"Yes\"))","v":"No"},"No"]
["Fund 17",null,null,null,null,null,null,null,null,null,null,null,null,null,{"$f":"IF($R20=\"\",\"No\",IF($R20>=$B$2,\"No\",\"Yes\"))","v":"No"},"No"]
["Fund 18",null,null,null,null,null,null,null,null,null,null,null,null,null,{"$f":"IF($R21=\"\",\"No\",IF($R21>=$B$2,\"No\",\"Yes\"))","v":"No"},"No"]
["Fund 19",null,null,null,null,null,null,null,null,null,null,null,null,null,{"$f":"IF($R22=\"\",\"No\",IF($R22>=$B$2,\"No\",\"Yes\"))","v":"No"},"No"]
["Fund 20",null,null,null,null,null,null,null,null,null,null,null,null,null,{"$f":"IF($R23=\"\",\"No\",IF($R23>=$B$2,\"No\",\"Yes\"))","v":"No"},"No"]
["Fund 21",null,null,null,null,null,null,null,null,null,null,null,null,null,{"$f":"IF($R24=\"\",\"No\",IF($R24>=$B$2,\"No\",\"Yes\"))","v":"No"},"No"]
["Fund 22",null,null,null,null,null,null,null,null,null,null,null,null,null,{"$f":"IF($R25=\"\",\"No\",IF($R25>=$B$2,\"No\",\"Yes\"))","v":"No"},"No"]
["Fund 23",null,null,null,null,null,null,null,null,null,null,null,null,null,{"$f":"IF($R26=\"\",\"No\",IF($R26>=$B$2,\"No\",\"Yes\"))","v":"No"},"No"]
["Fund 24",null,null,null,null,null,null,null,null,null,null,null,null,null,{"$f":"IF($R27=\"\",\"No\",IF($R27>=$B$2,\"No\",\"Yes\"))","v":"No"},"No"]
["Fund 25",null,null,null,null,null,null,null,null,null,null,null,null,null,{"$f":"IF($R28=\"\",\"No\",IF($R28>=$B$2,\"No\",\"Yes\"))","v":"No"},"No"]
["Fund 26",null,null,null,null,null,null,null,null,null,null,null,null,null,{"$f":"IF($R29=\"\",\"No\",IF($R29>=$B$2,\"No\",\"Yes\"))","v":"No"},"No"]
["Fund 27",null,null,null,null,null,null,null,null,null,null,null,null,null,{"$f":"IF($R30=\"\",\"No\",IF($R30>=$B$2,\"No\",\"Yes\"))","v":"No"},"No"]
["Fund 28",null,null,null,null,null,null,null,null,null,null,null,null,null,{"$f":"IF($R31=\"\",\"No\",IF($R31>=$B$2,\"No\",\"Yes\"))","v":"No"},"No"]
["Fund 29",null,null,null,null,null,null,null,null,null,null,null,null,null,{"$f":"IF($R32=\"\",\"No\",IF($R32>=$B$2,\"No\",\"Yes\"))","v":"No"},"No"]
["Fund 30",null,null,null,null,null,null,null,null,null,null,null,null,null,{"$f":"IF($R33=\"\",\"No\",IF($R33>=$B$2,\"No\",\"Yes\"))","v":"No"},"No"]
["Fund 31",null,null,null,null,null,null,null,null,null,null,null,null,null,{"$f":"IF($R34=\"\",\"No\",IF($R34>=$B$2,\"No\",\"Yes\"))","v":"No"},"No"]
["Fund 32",null,null,null,null,null,null,null,null,null,null,null,null,null,{"$f":"IF($R35=\"\",\"No\",IF($R35>=$B$2,\"No\",\"Yes\"))","v":"No"},"No"]
["Fund 33",null,null,null,null,null,null,null,null,null,null,null,null,null,{"$f":"IF($R36=\"\",\"No\",IF($R36>=$B$2,\"No\",\"Yes\"))","v":"No"},"No"]
["Fund 34",null,null,null,null,null,null,null,null,null,null,null,null,null,{"$f":"IF($R37=\"\",\"No\",IF($R37>=$B$2,\"No\",\"Yes\"))","v":"No"},"No"]
["Fund 35",null,null,null,null,null,null,null,null,null,null,null,null,null,{"$f":"IF($R38=\"\",\"No\",IF($R38>=$B$2,\"No\",\"Yes\"))","v":"No"},"No"]